Cogmind - Beta 16 @@@ ROGUE MODE // 2025.12.14 @ 20:25:32 Player: lvl5hm Result: Self-destructed Performance ------------- Evolutions (3) 1500 Regions Visited (8) 1600 Robots Destroyed (167) 835 Value Destroyed (5131) 5131 Prototype IDs (27) 540 Alien Tech Used (0) 0 Bonus (-30) -30 TOTAL SCORE: 9576 Bonus ------- High Alert Combat Kills 26 Follower Combat Kills 90 Met Imprinter 300 Triggered Deep Caves Wall 500 Exposed GOLEM Chamber 500 Friendly Fire -1446 Cogmind --------- Core Integrity 152/700 Matter 9/300 Energy 100/100 System Corruption 11% Temperature Cool (0) Movement Walking (200) Ox1 Location -7/Deep Caves Parts ------- > --- POWER (2) -------- Zionite Light DM Reactor > --- PROPULSION (3) --- Armored Treads Cargo Legs > --- UTILITY (6+2) ---- Advanced Heat Sink Advanced Heat Sink High-capacity Storage Unit > --- WEAPON (2) ------- Zionite Phaser-S Zionite Phaser-S > --- INVENTORY (20) --- Improved Deuterium Engine Armored Treads Improved Titanium Leg Improved Reaction Control System Zionite Laser-S Zionite Phaser-S Subdweller Shrapnel Launcher Heavy Missile Launcher Multitool Great Axe Peak State ------------ > --- POWER ------------ Enhanced Nuclear Core Zionite Light DM Reactor > --- PROPULSION ------- Armored Treads Armored Treads Armored Treads > --- UTILITY ---------- Advanced Heat Sink High-capacity Storage Unit Zionite Weapon Casing Zionite Weapon Casing Zionite Heavy Carapace > --- WEAPON ----------- Zionite Laser-S Advanced EMP Blaster > --- INVENTORY -------- Improved Deuterium Engine Armored Treads Armored Treads Improved Titanium Leg Cargo Legs Advanced Heat Sink Improved Reaction Control System Zionite Weapon Casing Zionite Light Carapace Zionite Light Carapace Hardened Light Armor Plating Layered Medium Armor Plating Zionite Phaser-S Zionite Phaser-S Zionite Phaser-S Subdweller Shrapnel Launcher Heavy Missile Launcher Multitool Great Axe [Rating: 71] Favorites ----------- Power Enhanced Nuclear Core Engine Reinforced Deuterium Engine Power Core Enhanced Nuclear Core Reactor Zionite Light DM Reactor Propulsion Armored Treads Treads Armored Treads Leg Aluminum Leg Wheel Armored Wheel Utility Improved Heat Sink Device Improved Heat Sink Storage High-capacity Storage Unit Hackware Makeshift System Shield Protection Layered Medium Armor Plating Weapon Light EM Pulse Cannon Energy Gun Spread Laser Energy Cannon Light EM Pulse Cannon Ballistic Gun Improved Assault Rifle Launcher Advanced EMP Blaster Special Weapon Multitool Impact Weapon Heavy Flail Slashing Weapon Chainsword Piercing Weapon CR-A16's Pointy Stick Build | -11 -10 -10 -8 -7 -7 -7 -7 -7 ------- Run | Yrd Mat Sub Mat Fac Low Low Zio Dee Slots Evolved 6 | . . . 4 2 . . . . Power 1 | . . . . 1 . . . . Propulsion 1 | . . . 1 . . . . . Utility 4 | . . . 3 1 . . . . Weapon . | . . . . . . . . . Parts Attached 137 | 8 5 20 42 16 4 11 16 15 Power 18 | 2 1 3 6 2 . . 3 1 Engine 13 | 2 1 3 4 . . . 3 . Core 4 | . . . 2 2 . . . . Reactor 1 | . . . . . . . . 1 Propulsion 31 | 2 1 4 15 3 . . 3 3 Treads 19 | 2 1 1 8 2 . . 3 2 Leg 8 | . . . 7 . . . . 1 Wheel 4 | . . 3 . 1 . . . . Hover . | . . . . . . . . . Flight . | . . . . . . . . . Utility 45 | 2 1 4 8 8 1 8 7 6 Device 20 | 1 . 2 3 4 . 3 7 . Storage 4 | 1 1 . 1 . 1 . . . Processor . | . . . . . . . . . Hackware 1 | . . . . . . 1 . . Protection 20 | . . 2 4 4 . 4 . 6 Artifact . | . . . . . . . . . Weapon 43 | 2 2 9 13 3 3 3 3 5 Energy Gun 15 | . . 4 4 1 . 1 . 5 Energy Cannon 8 | . . . 6 . 1 1 . . Ballistic Gun 7 | 2 2 3 . . . . . . Ballistic Cannon . | . . . . . . . . . Launcher 8 | . . 2 1 2 1 1 1 . Special Weapon 1 | . . . 1 . . . . . Impact Weapon 1 | . . . 1 . . . . . Slashing Weapon 2 | . . . . . 1 . 1 . Piercing Weapon 1 | . . . . . . . 1 . Special Melee Weapon . | . . . . . . . . . Unidentified Prototypes 15 | . 1 . 3 2 . 1 2 6 Corrupted Parts 6 | . . . 3 1 . . . 2 System Corruption 33 | . . . 21 1 . . . 11 Parts Lost 31 | . . 4 6 3 . 3 1 14 Power 2 | . . . 1 . . . . 1 Propulsion 11 | . . 3 3 . . 1 1 3 Utility 12 | . . . 1 2 . 1 . 8 Weapon 6 | . . 1 1 1 . 1 . 2 Highest Loss Streak 13 | . . 2 3 1 . 3 1 13 To Critical Strikes 1 | . . 1 . . . . . . Average Backups 15 | 1 7 10 13 13 16 18 18 18 Power . | . 1 . . . . 1 1 1 Propulsion 3 | . 1 1 2 3 4 3 3 4 Utility 3 | . 1 1 1 1 3 5 6 5 Weapon 6 | . 3 6 7 7 7 6 6 5 Tool/Special . | . . . . . . . . . Unused Backups 24 | . 3 3 6 1 . . 5 6 Power 4 | . . . . . . . 3 1 Propulsion 5 | . 1 . 1 . . . 1 2 Utility 7 | . . 1 2 1 . . 1 2 Weapon 8 | . 2 2 3 . . . . 1 Tool/Special . | . . . . . . . . . Average Slot Usage (%) 95 | . 100 89 94 99 97 92 99 93 Engine 7 | . 14 14 3 7 7 7 7 3 Core 5 | . . . 4 7 7 7 7 6 Treads 16 | . 28 14 10 19 15 15 18 22 Leg 1 | . . . 12 . . . . . Wheel 4 | . . 11 . 3 7 7 4 . Device 15 | . 14 4 15 22 22 21 17 11 Storage 7 | . 14 8 9 7 7 7 7 6 Protection 14 | . . 6 17 15 15 8 20 22 Energy Gun 4 | . . 16 7 . . . 1 1 Energy Cannon 6 | . . . 8 13 4 13 7 3 Ballistic Gun 3 | . 28 11 . . . . . . Launcher 1 | . . . . . 2 . 2 6 Slashing Weapon 1 | . . . . . 4 1 3 . Peak Build Rating 71 | 7 13 19 34 47 47 55 63 71 Average Rating 39 | 5 8 14 28 43 45 48 56 60 On Entrance 29 | . 7 13 13 34 46 44 53 59 Avg Prop Armor Cover (%) 9 | . . 3 2 12 13 9 10 8 Naked Turns . | . . . . . . . . . Heaviest Build 100 | 14 32 41 56 71 87 99 100 83 Greatest Support 68 | 40 40 40 60 60 12 12 68 60 Greatest Overweight (x) 12 | 4 . 9 12 5 7 8 8 3 Average Overweight (x) 3 | . . . . 2 6 7 4 1 Largest Inventory Capacity 20 | 8 15 15 15 15 20 20 20 20 Average Capacity 16 | 7 13 11 15 15 19 20 20 20 Most Carried 20 | 3 15 15 15 15 19 20 20 20 Average Carried 15 | 1 7 10 14 14 17 19 19 19 Final Capacity 20 | 8 15 15 15 15 20 20 20 20 Final Carried 20 | 3 15 14 15 15 17 20 20 10 Class Distribution -------------------- 61% | Mutant 37% | Scavenger-Mutant Dominant Class ---------------- Mutant | -10/Materials Mutant | -10/Subcaves Scavenger-Mutant | -8/Materials Scavenger-Mutant | -7/Factory Mutant | -7/Lower Caves Mutant | -7/Lower Caves Mutant | -7/Zion Scavenger-Mutant | -7/Deep Caves Resources | -11 -10 -10 -8 -7 -7 -7 -7 -7 ----------- Run | Yrd Mat Sub Mat Fac Low Low Zio Dee Matter Collected 4445 | 321 154 766 764 345 294 413 903 485 Remotely . | . . . . . . . . . Salvage Created 6865 | 148 231 643 1558 546 618 622 1149 1350 Parts 311 | 13 16 47 73 20 14 16 87 25 Haulers Intercepted 9 | . 2 . 5 1 . 1 . . Recyclers Shooed 1 | . 1 . . . . . . . Parts Field Recycled . | . . . . . . . . . Retrieved Matter . | . . . . . . . . . Parts Self-Destructed 20 | . . 11 . . 5 4 . . Prevented 12 | . . . . . 2 10 . . Parts Restored . | . . . . . . . . . Kills | -11 -10 -10 -8 -7 -7 -7 -7 -7 ------- Run | Yrd Mat Sub Mat Fac Low Low Zio Dee Combat Hostiles Destroyed 156 | . 6 20 30 9 11 12 9 59 Melee 1 | . . . . . . . 1 . Guns 30 | . 6 17 6 . . . 1 . Cannons 33 | . . . 19 8 2 4 . . AOE 80 | . . 3 . . 9 7 7 54 Classes Destroyed 24 | 3 4 4 4 3 . . 3 3 Worker 1 | 1 . . . . . . . . Builder 1 | . . . . 1 . . . . Tunneler 7 | 4 . . 2 1 . . . . Hauler 9 | . 2 . 5 1 . 1 . . Recycler 2 | 1 . . 1 . . . . . Operator 2 | . . . 2 . . . . . Turret 2 | . . 2 . . . . . . Watcher 1 | . 1 . . . . . . . Swarmer 26 | . 5 6 7 . 4 4 . . Grunt 26 | . 1 . 13 3 1 8 . . Brawler 1 | . . . . 1 . . . . Duelist 2 | . . . 2 . . . . . Sentry 8 | . . 1 6 1 . . . . Hunter 3 | . . . 1 . 2 . . . Programmer 4 | . . . . 4 . . . . Heavy 1 | . . . 1 . . . . . Enhanced Grunt 1 | . . . . . . . 1 . Artisan 2 | . . 2 . . . . . . Subdweller 13 | . . 13 . . . . . . Zionite 35 | . . . . . . . 35 . Z-Light 6 | . . . . . . . . 6 Tinkerer 1 | . . . . . . . 1 . Assembled 51 | . . . . . . . . 51 Golem 2 | . . . . . . . . 2 Wasp 1 | . . . . . . . 1 . Thug 6 | . . . . . 4 . 2 . Butcher 2 | . . . . . . . 2 . Mutant 4 | . . . . . . . 4 . Best Kill Streak 49 | 4 2 4 9 4 5 4 12 49 Combat Bots Only 49 | . 2 4 9 3 5 4 7 49 Max Kills in Single Turn 11 | 2 1 3 2 1 3 3 2 11 Gunslinging 1 | . . 1 . . . . . . Exploded 11 | . . 3 . . 3 3 2 11 Melee 1 | . . . . . . . 1 . Uniques/NPCs Destroyed 1 | . . . . . . . 1 . Imprinter (-7/Zion) Combat | -11 -10 -10 -8 -7 -7 -7 -7 -7 -------- Run | Yrd Mat Sub Mat Fac Low Low Zio Dee Hostile Shots Fired 781 | . 19 117 187 147 21 68 39 183 Missed 230 | . 5 42 39 47 10 17 11 59 Hits 551 | . 14 75 148 100 11 51 28 124 Melee 24 | . . . 3 4 . . 8 9 Projectile 527 | . 14 75 145 96 11 51 20 115 AOE 2 | . . 1 . 1 . . . . Critical Strikes 20 | . . 1 5 6 . 2 2 4 Actively Blocked 1 | . . . . . . . 1 . Part Disruptions 2 | . . . . . . . . 2 Damage Taken 9452 | . 138 1247 2475 1009 150 673 810 2950 Core 1240 | . 35 167 490 53 30 51 13 401 Absorbed by Shields 649 | . . . . 389 57 203 . . Redirected to Shielding 461 | . . . . 23 . . 56 382 Regen/Repaired (Parts) 226 | . . . 139 87 . . . . Core Remaining (%) 43 | 100 . 19 10 . . . . . Volleys Fired 500 | 14 29 89 119 45 17 29 105 53 Largest 2 | 2 2 2 2 2 2 2 2 2 Hottest 148 | 40 40 130 136 136 112 136 148 75 Shots Fired 847 | 28 58 147 232 90 28 49 158 57 Gun 350 | 28 58 141 98 4 . . 21 . Cannon 362 | . . . 134 86 18 40 84 . Launcher 135 | . . 6 . . 10 9 53 57 Special . | . . . . . . . . . Kinetic 213 | 28 58 127 . . . . . . Thermal 443 | . . 19 216 90 . 13 105 . Explosive 72 | . . 1 . . 10 3 41 17 Electromagnetic 119 | . . . 16 . 18 33 12 40 Robot Hit Streak 27 | 7 5 27 25 11 6 11 9 10 Robot Miss Streak 5 | 3 4 4 5 3 5 4 3 2 Penetration Max . | . . . . . . . . . Secondary Targets 5 | . 1 4 . . . . . . Max Gunslinging Chain 1 | . 1 1 . . . . . . Shots Hit Robots 486 | 13 29 100 159 58 18 36 70 3 Core Hits 433 | 8 15 48 88 22 21 17 60 154 Critical Kills 5 | . . 1 3 . . . 1 . Critical Parts Destroyed 1 | . 1 . . . . . . . Critical Strikes 10 | . 1 3 4 . 1 . 1 . Burn 1 | . . . 1 . . . . . Meltdown 4 | . . . 3 . . . 1 . Destroy 4 | . 1 3 . . . . . . Corrupt 1 | . . . . . 1 . . . Melee Attacks 55 | . . . 10 1 35 5 4 . Impact 11 | . . . 10 1 . . . . Slashing 44 | . . . . . 35 5 4 . Piercing . | . . . . . . . . . Sneak Attacks 1 | . . . . . . . 1 . Combat Hostiles . | . . . . . . . . . Follow-up Attacks . | . . . . . . . . . Damage Inflicted 19930 | 196 316 2088 3117 1344 1470 1543 3776 6080 Guns 3747 | 196 316 1665 1284 50 . . 236 . Cannons 5590 | . . . 1822 1294 200 845 1429 . Explosions 10034 | . . 423 . . 831 698 2002 6080 Melee 548 | . . . . . 439 . 109 . Ramming 11 | . . . 11 . . . . . Kinetic 2362 | 196 316 1850 . . . . . . Thermal 6406 | . . 180 2801 1344 . 307 1665 109 Explosive 7026 | . . 58 . . 831 351 1421 4365 Electromagnetic 3577 | . . . 305 . 200 885 581 1606 Impact . | . . . . . . . . . Slashing 548 | . . . . . 439 . 109 . Piercing . | . . . . . . . . . Highest Corruption 21 | . . . 21 4 4 5 5 11 Average Corruption 3 | . . . 18 2 4 4 5 10 Corruption Purged . | . . . . . . . . . Corruption Blocked . | . . . . . . . . . Effects 123 | . . . 1 16 54 41 8 3 Message Errors 29 | . . . 1 7 7 11 2 1 Matter Fused 32 | . . . . 5 15 11 . 1 Heat Flow Errors 14 | . . . . . 7 5 2 . Energy Discharges 17 | . . . . 1 8 6 2 . Parts Fused 1 | . . . . . . 1 . . Data Loss (minor) 15 | . . . . 3 7 3 1 1 Data Loss (major) 7 | . . . . . 3 3 1 . Misfires 4 | . . . . . 4 . . . Alerts 3 | . . . . . 2 1 . . Weapon Failures 1 | . . . . . 1 . . . Overload Shots . | . . . . . . . . . Overflow Damage 319 | . . 71 14 25 47 11 47 104 Projectiles 99 | . . . 14 25 13 3 44 . Explosions 203 | . . 71 . . 17 8 3 104 Melee 17 | . . . . . 17 . . . Knockbacks 1 | . . . 1 . . . . . Impact 1 | . . . 1 . . . . . Kinetic . | . . . . . . . . . Secondary . | . . . . . . . . . Self-Inflicted Damage 285 | . . 31 . . 34 46 84 90 Shots 12 | . . 1 . . 1 3 4 3 Rammed 1 | . . . 1 . . . . . Targets Rammed 1 | . . . 1 . . . . . Kicked . | . . . . . . . . . Crushed . | . . . . . . . . . Highest Temperature 555 | . . 90 555 349 242 389 428 169 Average Temperature 88 | . . 35 116 124 118 131 84 52 Received Heat Transfer 2672 | . . 186 927 244 24 330 67 894 Effects 17 | . . . 9 2 . 4 2 . Shutdowns 4 | . . . 1 . . 2 1 . Energy Bleed 5 | . . . 1 2 . 2 . . Interference 3 | . . . 3 . . . . . Short Circuit 2 | . . . 2 . . . . . Damage (minor) 2 | . . . 1 . . . 1 . Damage (major) 1 | . . . 1 . . . . . Siege Activations . | . . . . . . . . . Martial Activations . | . . . . . . . . . Shielding Activations . | . . . . . . . . . Robots Disrupted . | . . . . . . . . . Combat Hostiles . | . . . . . . . . . Robots Corrupted 9 | . . . 1 . . 2 . 6 Combat Hostiles 8 | . . . 1 . . 1 . 6 Parts Fried 36 | . . . 4 . 2 8 4 18 Impact Corruptions . | . . . . . . . . . Robots Melted 6 | . . . 4 1 . . 1 . Combat Hostiles 5 | . . . 4 1 . . . . Parts Melted 21 | . . 1 12 4 . 1 3 . Heat Transferred 10655 | . . 220 4894 2220 . 600 2571 150 Parts Sabotaged . | . . . . . . . . . Parts Stolen . | . . . . . . . . . Parts Stripped . | . . . . . . . . . Power Chain Reactions 8 | . . . . . . . 3 5 Alert | -11 -10 -10 -8 -7 -7 -7 -7 -7 ------- Run | Yrd Mat Sub Mat Fac Low Low Zio Dee Maximum Alert Level 2 | . . . 2 1 . . . . Low Security (%) 94 | 100 100 . 90 98 . . . . Level 1 4 | . . . 7 1 . . . . Level 2 1 | . . . 2 . . . . . Level 3 . | . . . . . . . . . Level 4 . | . . . . . . . . . Level 5 . | . . . . . . . . . High Security . | . . . . . . . . . Max Security . | . . . . . . . . . Peak Influence 454 | 10 105 . 454 206 . . . . Initial 205 | . . . 5 205 . . . . Average 46 | 2 23 . 52 51 . . . . Influence Increases 2389 | 30 222 360 951 291 180 355 . . Destroy 0b10 Robot/C 1460 | . 120 180 600 180 140 240 . . Destroy 0b10 Robot/NC 125 | 30 15 . 50 15 10 5 . . Destroy Leader 288 | . 26 . 150 62 30 20 . . Successful Hack 64 | . 16 . 18 30 . . . . Disable Machine 30 | . . . 30 . . . . . Destroy Structure 17 | . . . 13 4 . . . . Lose Combat Pursuer 405 | . 45 180 90 . . 90 . . Influence Decreases 2389 | 30 222 348 511 743 180 230 125 . Entered New Map 379 | . . . 7 247 . . 125 . Time Decay 1774 | 30 222 318 429 395 180 200 . . Lost Part 135 | . . 30 60 15 . 30 . . Purge Threat 101 | . . . 15 86 . . . . Squads Dispatched 12 | . 1 . 4 7 . . . . Investigation 2 | . . . 1 1 . . . . Extermination 4 | . . . . 4 . . . . Reinforcement 6 | . 1 . 3 2 . . . . Assault . | . . . . . . . . . Garrison . | . . . . . . . . . Intercept . | . . . . . . . . . Searches Triggered . | . . . . . . . . . Construction Impeded 1 | . . . 1 . . . . . Haulers Reinforced . | . . . . . . . . . Active Scanning Responses . | . . . . . . . . . Cargo Convoy Interrupts . | . . . . . . . . . Stealth | -11 -10 -10 -8 -7 -7 -7 -7 -7 --------- Run | Yrd Mat Sub Mat Fac Low Low Zio Dee Distress Signals 5 | . 1 . 4 . . . . . Communications Jammed . | . . . . . . . . . Distress Signals . | . . . . . . . . . Times Spotted 234 | . 15 24 62 14 9 16 37 57 Peak Tracking Total 29 | . 4 4 9 3 5 5 9 29 Tactical Retreats 24 | . 3 4 5 . . 6 4 2 Traps | -11 -10 -10 -8 -7 -7 -7 -7 -7 ------- Run | Yrd Mat Sub Mat Fac Low Low Zio Dee Traps Triggered 4 | . 1 1 . 2 . . . . Indirectly . | . . . . . . . . . Trap Hack Attempts . | . . . . . . . . . Triggered . | . . . . . . . . . Disarmed . | . . . . . . . . . Reprogrammed . | . . . . . . . . . Reused . | . . . . . . . . . Traps Extracted . | . . . . . . . . . Installed . | . . . . . . . . . Triggered . | . . . . . . . . . Machines | -11 -10 -10 -8 -7 -7 -7 -7 -7 ---------- Run | Yrd Mat Sub Mat Fac Low Low Zio Dee Machines Disabled 17 | . . 5 2 . . . 9 1 Max in Single Turn 2 | . . 2 1 . . . 2 1 Garrison Access 1 | . . . 1 . . . . . Machines Repaired . | . . . . . . . . . Machines Dismantled . | . . . . . . . . . Machines Sabotaged . | . . . . . . . . . Overloaded Fab Kills . | . . . . . . . . . Hacking | -11 -10 -10 -8 -7 -7 -7 -7 -7 --------- Run | Yrd Mat Sub Mat Fac Low Low Zio Dee Machines Accessed 22 | . 5 1 11 5 . . . . Terminals 15 | . 5 . 8 2 . . . . Fabricators . | . . . . . . . . . Repair Stations 4 | . . . 1 3 . . . . Recycling Units . | . . . . . . . . . Scanalyzers 1 | . . . 1 . . . . . Garrison Access 1 | . . . 1 . . . . . Total Hacks 41 | . 8 1 20 12 . . . . Successful 24 | . 5 1 11 7 . . . . Failed 17 | . 3 . 9 5 . . . . Catastrophic 4 | . 3 . . 1 . . . . Database Lockouts . | . . . . . . . . . Manual 24 | . 7 . 11 4 . . 2 . Terminals 28 | . 8 . 14 6 . . . . Fabricators . | . . . . . . . . . Repair Stations 8 | . . . 2 6 . . . . Recycling Units . | . . . . . . . . . Scanalyzers 2 | . . . 2 . . . . . Garrison Access 2 | . . . 2 . . . . . Terminal Hacks 9 | . 2 1 4 2 . . . . Robot Analysis 1 | . 1 . . . . . . . Branch Access Points 2 | . . . 1 1 . . . . Unreport Threat 3 | . . . 2 1 . . . . Locate Traps 2 | . 1 . 1 . . . . . Proto ID Catalog 1 | . . 1 . . . . . . Fabricator Hacks . | . . . . . . . . . Repair Station Hacks 6 | . . . 2 4 . . . . Scan Component 4 | . . . 1 3 . . . . Repair 2 | . . . 1 1 . . . . Recycling Unit Hacks . | . . . . . . . . . Scanalyzer 1 | . . . 1 . . . . . Retrieve Study 1 | . . . 1 . . . . . Garrison Access Hacks 2 | . . . 2 . . . . . Unlock Access 1 | . . . 1 . . . . . Seal Access 1 | . . . 1 . . . . . Unauthorized Hacks 6 | . 3 . 2 1 . . . . Terminals 6 | . 3 . 2 1 . . . . Botnet 6 | . 3 . 2 1 . . . . Fabricators . | . . . . . . . . . Repair Stations . | . . . . . . . . . Recycling Units . | . . . . . . . . . Scanalyzers . | . . . . . . . . . Garrison Access . | . . . . . . . . . Data Cores Recovered 1 | . . . 1 . . . . . Used . | . . . . . . . . . Hacking Detections 13 | . 5 . 4 4 . . . . Full Trace Events 2 | . . . 1 1 . . . . Feedback Events . | . . . . . . . . . Feedback Blocked . | . . . . . . . . . Robot Schematics Acquired 4 | . . . . . . . 4 . Robots Built . | . . . . . . . . . Authchips . | . . . . . . . . . Time . | . . . . . . . . . Total Robot Build Rating . | . . . . . . . . . Part Schematics Acquired 14 | . . . . . . . 14 . Parts Built . | . . . . . . . . . Authchips . | . . . . . . . . . Time . | . . . . . . . . . Total Part Build Rating . | . . . . . . . . . Part Studies Acquired 1 | . . . 1 . . . . . Parts Repaired 2 | . . . 1 1 . . . . Time 70 | . . . 44 26 . . . . Parts Recycled . | . . . . . . . . . Recycled Matter . | . . . . . . . . . Retrieved Matter . | . . . . . . . . . Retrieved Components . | . . . . . . . . . Parts Scanalyzed . | . . . . . . . . . Part Schematics Acquired . | . . . . . . . . . Parts Damaged . | . . . . . . . . . Bothacking | -11 -10 -10 -8 -7 -7 -7 -7 -7 ------------ Run | Yrd Mat Sub Mat Fac Low Low Zio Dee Used RIF Installer . | . . . . . . . . . Robots Hacked . | . . . . . . . . . Non-combat . | . . . . . . . . . Combat . | . . . . . . . . . Robot Hacks Applied . | . . . . . . . . . Relay Couplers Released . | . . . . . . . . . Fabnet Peak Effective % . | . . . . . . . . . Robots Rewired . | . . . . . . . . . Allies Hacked . | . . . . . . . . . Hacks Repelled . | . . . . . . . . . Allies | -11 -10 -10 -8 -7 -7 -7 -7 -7 -------- Run | Yrd Mat Sub Mat Fac Low Low Zio Dee Total Allies 7 | . . . . . . . 7 . Largest Group 7 | . . . . . . . 7 . Highest-Rated Group 318 | . . . . . . . 318 . Highest-Rated Ally 96 | . . . . . . . 96 . Total Orders . | . . . . . . . . . Ally Attacks 50 | . . . . . . . 50 . Total Damage 1716 | . . . . . . . 1716 . Kills 8 | . . . . . . . 8 . Allies Corrupted . | . . . . . . . . . Allies Melted 1 | . . . . 1 . . . . Intel | -11 -10 -10 -8 -7 -7 -7 -7 -7 ------- Run | Yrd Mat Sub Mat Fac Low Low Zio Dee Active Infowar (turns) 2154 | 25 887 1014 228 . . . . . Seismic 2154 | 25 887 1014 228 . . . . . Robot Analysis Total 1 | . 1 . . . . . . . Derelict Logs Recovered 7 | . . 3 . . 2 1 1 . Drone Launches . | . . . . . . . . . Drone Recoveries . | . . . . . . . . . Exploration | -11 -10 -10 -8 -7 -7 -7 -7 -7 ------------- Run | Yrd Mat Sub Mat Fac Low Low Zio Dee Turns Passed 19865 | 151 887 3460 2951 1561 2618 2001 4362 1874 Spaces Moved 8815 | 59 478 1647 1176 635 1291 904 1957 668 Core 62 | 15 . 34 13 . . . . . Treads 3636 | 44 478 972 582 322 . . 575 663 Legs 586 | . . . 581 . . . . 5 Wheels 4531 | . . 641 . 313 1291 904 1382 . Hover . | . . . . . . . . . Flight . | . . . . . . . . . Fastest Speed 50 | 50 160 110 160 165 165 180 180 200 Average Speed 195 | 166 160 180 186 206 187 205 202 250 Slowest Speed 650 | 250 160 500 650 246 195 210 250 410 Overloaded Moves . | . . . . . . . . . Propulsion Burnouts . | . . . . . . . . . Robots Hopped . | . . . . . . . . . Potential Cave-ins . | . . . . . . . . . Cave-ins Triggered . | . . . . . . . . . Exploration Rate (%) 63 | 5 68 51 75 20 99 95 89 65 Regions Visited 8 Branch Regions 5 Pre-discovered Areas 2 | . . 1 . . 1 . . . Known Exits Taken 2 | . . 1 . 1 . . . . Unknown Exits Taken 6 | 1 1 . 1 . 1 1 1 . Scrap Searched 11 | . . 2 . . 1 3 5 . Spaces Dug 80 | . . . 9 1 62 5 3 . Terrain Destroyed 423 | . . 64 9 1 158 52 124 15 Melee 42 | . . . 8 1 28 5 . . Projectile 5 | . . . 1 . . . 4 . AOE 376 | . . 64 . . 130 47 120 15 Terrain Rammed . | . . . . . . . . . Walls Destroyed . | . . . . . . . . . Machines Disabled . | . . . . . . . . . Actions | -11 -10 -10 -8 -7 -7 -7 -7 -7 --------- Run | Yrd Mat Sub Mat Fac Low Low Zio Dee Total 10445 | 82 549 1971 1682 793 1407 985 2171 805 Wait 602 | . 17 154 250 59 45 11 36 30 Move 8807 | 58 477 1646 1175 634 1290 903 1956 668 Hop . | . . . . . . . . . Pick Up 95 | 2 15 18 24 10 4 4 10 8 Fast Attach 48 | 7 . 6 10 3 . 9 7 6 Attach 30 | . . 2 4 5 3 4 1 11 Detach 13 | . . 1 1 . 3 5 1 2 Swap 168 | 1 5 37 48 19 8 8 30 12 Drop 117 | . 6 18 34 14 2 7 21 15 Fire 500 | 14 29 89 119 45 17 29 105 53 Melee 55 | . . . 10 1 35 5 4 . Ram . | . . . . . . . . . Kick . | . . . . . . . . . Crush 1 | . . . 1 . . . . . Escape Stasis . | . . . . . . . . . Rewire 1 | . . . . 1 . . . . Trap . | . . . . . . . . . Miscellaneous 8 | . . . 6 2 . . . . Route ------- -11/Scrapyard -10/Materials (discovered 3 exits: [*Mat x2] / *Sub) -10/Subcaves (discovered 2 exits: *Mat / [*Rec]) -8/Materials (discovered 3 exits: *Fac x2 / Sto) -7/Factory (discovered 3 exits: [*Fac] / *Low x2) -7/Lower Caves -7/Lower Caves (discovered 2 exits: [*Fac] / *Zio) -7/Zion (discovered 2 exits: [*Dee] / [*Pro]) -7/Deep Caves History --------- Turn | Location | Event 34 | -11/Scrapyard | Discovered new exit (range 15) 152 | -11/Scrapyard | Entered Materials 305 | -10/Materials | Build established: Mutant 351 | -10/Materials | Discovered new exit (range 13) 710 | -10/Materials | Discovered new exit (range 16) 1023 | -10/Materials | Discovered new exit (range 12) 1039 | -10/Materials | Entered Subcaves 1040 | -10/Subcaves | Approached by a straggling Scientist 1063 | -10/Subcaves | Ambushed by Subdwellers from Twisted Machinery 1064 | -10/Subcaves | Disturbed a concealed Subdweller 1227 | -10/Subcaves | Identified exit to Materials 1679 | -10/Subcaves | A Subdweller sparked back to life 1679 | -10/Subcaves | A Subdweller sparked back to life 1756 | -10/Subcaves | Found Prototype Leg 2031 | -10/Subcaves | Core integrity fell below 50% 2055 | -10/Subcaves | Discovered new exit (range 15) 2775 | -10/Subcaves | Shifting Twisted Machinery released Battle Rifle 2775 | -10/Subcaves | Shifting Twisted Machinery released Sub. Shrapnel Launcher 2776 | -10/Subcaves | Learned Materials interactive machine intel 3383 | -10/Subcaves | Visited 4L-MR0's lab 3397 | -10/Subcaves | Identified Cargo Legs 3490 | -10/Subcaves | Core integrity fell below 20% 3543 | -10/Subcaves | A swath of the cavern ceiling suddenly collapsed 4499 | -10/Subcaves | Entered Materials 4499 | -8/Materials | Evolved 4 slots: Propulsion x1, Utility x3 4500 | -8/Materials | Loaded intel: 18 interactive machine locations 4774 | -8/Materials | Lost 3 parts (2n1w) 5224 | -8/Materials | Identified exit to Storage 5245 | -8/Materials | Build established: Scavenger-Mutant 5497 | -8/Materials | Discovered new exit (range 14) 5662 | -8/Materials | Repaired Mak. Light Armor Plating 7078 | -8/Materials | Identified exit to Garrison 7220 | -8/Materials | Core integrity fell below 50% 7243 | -8/Materials | Destroyed 9 combat bots 7359 | -8/Materials | Discovered new exit (range 4) 7411 | -8/Materials | Core integrity fell below 20% 7441 | -8/Materials | System corruption reached 10% 7450 | -8/Materials | Entered Factory 7450 | -7/Factory | Evolved 2 slots: Power x1, Utility x1 7623 | -7/Factory | Identified exit to Lower Caves 7844 | -7/Factory | Repaired Broken Arm. Treads 8663 | -7/Factory | Build established: Mutant 8829 | -7/Factory | Allied Derelicts emerged from ambush trap array 8903 | -7/Factory | Discovered new exit (range 3) 9011 | -7/Factory | Entered Lower Caves 9016 | -7/Lower Caves | Learned Factory stockpile data 11405 | -7/Lower Caves | Discovered new exit (range 12) 11577 | -7/Lower Caves | Ambushed by wild Derelicts 11629 | -7/Lower Caves | Entered another Lower Caves area 11654 | -7/Lower Caves | Entered a destroyed Warlord outpost 11739 | -7/Lower Caves | Discovered new exit (range 15) 11750 | -7/Lower Caves | Encountered a Warlord checkpoint 11896 | -7/Lower Caves | Learned 8 Factory zone layouts 13306 | -7/Lower Caves | Discovered new exit (range 5) 13447 | -7/Lower Caves | Lost 3 parts (1n1u1w) 13630 | -7/Lower Caves | Entered Zion 13730 | -7/Zion | Found CR-A16's Pointy Stick 13760 | -7/Zion | Discovered new exit (range 13) 13787 | -7/Zion | Gained Derelict followers 13904 | -7/Zion | System corruption cleaned by Quarantine Array 14537 | -7/Zion | Found Prototype Device 14537 | -7/Zion | Identified Phasing AFG 14996 | -7/Zion | Met Imprinter 15354 | -7/Zion | Given A8's code to call for help 16030 | -7/Zion | Enhanced Grunt warped into view, answering call for help 16035 | -7/Zion | Enhanced Grunt warped into view, answering call for help 16190 | -7/Zion | Murdered Imprinter 16191 | -7/Zion | Attacked by Zionites 16227 | -7/Zion | Destroyed 7 combat bots 16319 | -7/Zion | Found Prototype Device 16319 | -7/Zion | Identified Exp. Thermal Shield 16533 | -7/Zion | Build established: Scavenger-Mutant 17979 | -7/Zion | Discovered new exit (range 5) 17984 | -7/Zion | Saw the warning signs outside the Deep Caves entrance 17992 | -7/Zion | Entered Deep Caves 18790 | -7/Deep Caves | Z-Facility disabled 18844 | -7/Deep Caves | Found Prototype Protection 18844 | -7/Deep Caves | Identified Zio. Weapon Casing 19007 | -7/Deep Caves | Found Zio. Weapon Casing 19040 | -7/Deep Caves | Found Prototype Protection 19044 | -7/Deep Caves | Identified Zio. Heavy Carapace 19048 | -7/Deep Caves | Found Zio. Weapon Casing 19738 | -7/Deep Caves | Spotted AG-56519 19743 | -7/Deep Caves | Exposed GOLEM chamber 19744 | -7/Deep Caves | Triggered Deep Caves wall 19750 | -7/Deep Caves | Destroyed AG-56519 19781 | -7/Deep Caves | Core integrity fell below 50% 19784 | -7/Deep Caves | System corruption reached 10% 19796 | -7/Deep Caves | Spotted AG-08234 19797 | -7/Deep Caves | Spotted AS-78392 19820 | -7/Deep Caves | Destroyed AG-08234 19842 | -7/Deep Caves | Destroyed 49 combat bots 19853 | -7/Deep Caves | Attached Cargo Legs, gained temporary slots: Utility x2 19866 | -7/Deep Caves | Self-destructed Last Messages --------------- 19835_ Lyr. Medium Armor Plating destroyed. 19842_ Adv. EMP Blaster destroyed. 19843_ Acquired 67 matter. 19843_ Critical hit (Burn: +80). 19845_ as-71274 IFF system glitched. 19846_ as-54801 heat spikes uncontrollably. 19846_ Critical hit (Burn: +80). 19847_ Destroyed Asb. P-torch. 19847_ as-71274 destroyed. 19847_ as-54801 destroyed. 19847_ as-87644 destroyed. 19849_ Destroyed Asb. Hover System. 19849_ as-03056 destroyed. 19853_ Core temporarily expanded with Utility slot. 19862_ as-49438 released from Mobile Assembly Unit. 19863_ Penetrated by Slug. 19864_ Hrd. Light Armor Plating destroyed. 19866_ Penetrated by Slug. Map ----- +----------------------------------------------------+ | ??????????????????????????????????????????? | | ??????????????????????????????????????????? | | ??????????????????????????????????????????? | | ??????????????????????????????????????????? | | ??????????????????????????????????????????? | | ??????????????????????????????????????????? | | ?????????????????????????????????????? | | ?????????????????? #?????????????? | | ???????????????? != # ???????????? | | ????????????? ##?????? #?# | | ??????????? = "#????? ## | | ????????? / ?????? | | ???????? a #??????? | | ?????? a [ ##??????? | | ?????? a #????????# | | ?????? #?????????# | | ??????? aa [ g #???####### | | ???????## a #??## ## | | ???????"GG [ #?## = | | ???????"GG a #?# ## | | ???????"GG #?# | | ???????"GG #### ! | | ???????"GG #?###### | | ????????# #??????# | | ????????" [ #??????## | | ????????" @ ########### | | ????????"G = | | ????????""" | | ????????" = | | ????????"" [ ;############# | | ????????" ##???????????? | | ????????"" ##????????????? | | ????????" # ; #?????????????? | | ????????" #### ## ## ##?????????????? | | ????????""" ##???# ## ####??????????????? | | ?????????" ?????#### #?????????????????? | | ?????????####??????????#??????????????????? | | | | | | | | | | | | | | | | | | | | | | | | | | | +----------------------------------------------------+ Best States ------------- Heat Dissipation 72 Energy Generation 39 Energy Capacity 490 Matter Stores 300 Matter Capacity 300 Sight Range 16 Terrain Scan Density 10 Armor Coverage 1350 Resistance: TH 30 Resistance: EM 15 Propulsion Shielding 66 Weapon Shielding 100 Evasion (%) 40 Recoil Reduction 3 Particle Charging 25 Item Schematics ----------------- Thermal Shield | -7/Zion | Archive Lightning Gun | -7/Zion | Archive Adv. Cooling System | -7/Zion | Archive Flak Gun | -7/Zion | Archive Imp. Hacking Suite | -7/Zion | Archive Hrd. Heavy Armor Plating | -7/Zion | Archive Phase Shifter | -7/Zion | Archive Gauss Cannon | -7/Zion | Archive Angular Momentum Engine | -7/Zion | Archive Adv. Trap Extractor | -7/Zion | Archive Imp. Melee Analysis Suite | -7/Zion | Archive Imp. System Restoration Module | -7/Zion | Archive Imp. Target Analyzer | -7/Zion | Archive Force Booster | -7/Zion | Archive Robot Schematics ------------------ T-07 Excavator | -7/Zion | Archive O-24 Administrator | -7/Zion | Archive A-02 Transporter | -7/Zion | Archive G-73 Enforcer | -7/Zion | Archive Fabricated ------------ Nothing Repaired ---------- Mak. Light Armor Plating | 53% | -8/Materials Arm. Treads | 71% | -7/Factory | Broken Studied --------- EM Pulse Cannon | -8/Materials | Hacked Alien Tech Used ----------------- None Achievements -------------- None Challenges ------------ None Game ------ Seed ShockMediumWand Manual? 0 Play Time 01:57:15 Cumulative 289.7 hours Start 2025.12.14 @ 18:26:14 End 2025.12.14 @ 20:25:32 Sessions 1 Manual Loads 0 Difficulty Rogue Special Mode None Game No. 209 Rogue 209 Adventurer 0 Explorer 0 Win Type - Total 13 Types 7/1/2/1/0/0/0/1/0/1 Lore% 72 Gallery% 76 Achievement% 70 Wizard Run 0 Options --------- Layout 2 ASCII 0 Keyboard 1 Movement Arrows Keybinds 0 Fullscreen 1 Font 32/Tamsyn Map View 50x44 Zoom Use 0% Tactical HUD 1 Map Filters NONE Filters NONE Steam 1 RUN: d30cfc8a-583d-4751-a9ee-d50663e4f12e